bitfinex/quotes_ETHUSD_20250130
["timestamp","ask_amount","ask_price","bid_price","bid_amount"]
[1738217398631,0.34583659,3204.8,3203.0,0.0075]
[1738217398632,3.12102,3204.1,3203.5,6.09180149]
[1738217398792,3.12081,3204.3,3203.7,3.12138]
[1738217398991,0.02931511,3204.2,3203.7,3.12138]
[1738217402276,0.02931511,3204.2,3204.1,6.09128149]
[1738217402685,3.12032,3204.8,3204.1,3.12092]
[1738217402984,3.14858535,3204.7,3204.1,3.12092]
[1738217403189,3.94857,3204.6,3203.9,3.12116]
[1738217403339,0.02814723,3204.5,3203.9,3.12116]
[1738217403543,0.02814723,3204.5,3203.9,6.24228]
[1738217403788,0.02814723,3204.5,3204.0,3.12106]
[1738217403959,0.02814723,3204.5,3204.1,3.1209]
[1738217404275,3.12014,3205.0,3204.4,3.12068]
[1738217404484,0.02819632,3204.4,3204.3,3.1208]
[1738217404690,0.8124,3205.1,3204.7,3.1204]
[1738217405085,0.02831988,3205.0,3204.7,3.1204]
[1738217405289,0.02831988,3205.0,3204.8,3.12031]
[1738217405615,3.93215,3205.4,3204.8,3.12031]
[1738217405898,0.02840052,3204.9,3204.8,3.12031]
[1738217406184,0.02839835,3204.9,3204.8,3.12031]
[1738217406597,0.8124,3205.4,3204.8,3.12031]
[1738217406817,0.02841301,3205.3,3204.9,3.12016]
[1738217406972,0.02841301,3205.3,3205.1,3.12002]
[1738217407153,0.8302,3205.6,3205.1,3.12002]
[1738217407359,0.02841866,3205.5,3205.1,3.12002]
[1738217407586,0.02841866,3205.5,3205.0,3.12003]
[1738217411726,0.02841866,3205.5,3205.4,2.97028149]
[1738217411861,0.02841866,3205.5,3205.4,6.88831149]
[1738217412074,0.7805,3206.5,3205.9,3.11921]
[1738217412630,0.7805,3206.5,3205.7,6.08969149]
[1738217412927,3.11877,3206.4,3205.8,3.11933]
[1738217413073,3.11877,3206.4,3205.7,3.11941]
[1738217413428,3.2854741,3206.3,3205.7,3.11941]
[1738217414213,4.00394851,3206.3,3205.7,3.11941]
[1738217414717,0.88506851,3206.3,3205.5,3.11962]
[1738217414921,3.11913,3206.1,3205.5,3.11962]
[1738217415213,3.91513,3206.2,3205.5,3.11962]
[1738217415595,3.91513,3206.2,3205.6,3.11947]
[1738217419040,3.91513,3206.2,3205.7,3.11942]
[1738217419243,3.91513,3206.2,3205.6,3.11947]
[1738217419750,4.63517941,3206.2,3205.6,3.11947]
[1738217421265,0.7689,3209.2,3207.6,3.06921563]
[1738217421413,0.7689,3209.2,3208.5,2.97028149]
[1738217421605,0.7689,3209.2,3208.4,0.2]
[1738217421812,0.7846,3208.9,3208.4,0.2]
[1738217422050,0.7846,3208.9,3208.0,0.2]
[1738217422259,0.7846,3209.2,3207.9,0.2]
[1738217422557,0.7846,3209.2,3208.1,0.2]
[1738217422558,0.7571,3208.2,3208.1,0.2]
[1738217422847,0.7571,3208.2,3207.9,0.2]
[1738217423436,0.7571,3208.2,3207.9,3.17028149]
[1738217424273,0.7571,3208.2,3207.9,6.28758149]
[1738217424440,0.7571,3208.2,3208.1,0.2]
[1738217424640,0.7571,3208.2,3207.9,3.17028149]
[1738217424894,0.7571,3208.2,3208.1,0.2]
[1738217425244,1.144492,3208.2,3208.1,0.2]
[1738217425676,1.144492,3208.2,3207.9,3.17028149]
[1738217425911,1.144492,3208.2,3208.1,0.2]
[1738217426447,0.7571,3208.2,3208.1,0.2]
[1738217427994,0.0075,3208.5,3208.4,0.2]
[1738217428297,0.813,3209.0,3208.5,3.11672]
[1738217428515,0.813,3209.0,3208.6,0.2]
[1738217429079,0.0075,3208.9,3208.6,0.2]
[1738217429295,0.50348199,3208.9,3208.6,0.2]
[1738217430586,0.50348199,3208.9,3208.5,2.97028149]
[1738217430587,0.8033,3209.3,3209.2,3.21497414]
[1738217430759,3.11484,3210.5,3209.2,3.21497414]
[1738217430760,0.8033,3209.6,3209.4,0.09893414]
[1738217430961,0.8033,3209.6,3209.4,3.21477414]
[1738217431159,1.43818569,3210.3,3209.4,3.21477414]
[1738217431362,1.43818569,3210.3,3209.4,0.09893414]
[1738217431558,0.9749941,3209.5,3209.1,0.2]
[1738217431799,0.9749941,3209.5,3209.3,0.2]
[1738217431800,3.11584,3209.4,3209.3,0.2]
[1738217432104,0.72815841,3209.4,3209.3,0.2]
[1738217432302,0.78094121,3209.4,3209.3,0.2]
[1738217432791,3.1761228,3209.4,3209.3,0.2]
[1738217433300,0.0602828,3209.4,3209.3,0.2]
[1738217433901,3.1761228,3209.4,3209.3,0.2]
[1738217434878,3.1761228,3209.4,3209.1,0.2]
[1738217435269,3.1761228,3209.4,3209.3,0.2]
[1738217435466,3.90279949,3209.4,3209.1,0.2]
[1738217436099,3.90279949,3209.4,3209.3,0.2]
[1738217436775,3.90279949,3209.4,3209.1,0.2]
[1738217437120,3.90279949,3209.4,3208.8,3.21535414]
[1738217437121,3.11614,3209.1,3208.8,0.29893414]
[1738217437505,0.05437013,3209.0,3208.8,0.29893414]
[1738217437673,0.37142114,3209.0,3208.8,0.29893414]
[1738217438073,0.05437013,3209.0,3208.8,0.29893414]
[1738217438627,0.05457496,3208.9,3208.8,0.29893414]
[1738217438773,3.13095,3209.3,3208.8,0.29893414]
[1738217438973,0.05457838,3209.2,3208.8,0.29893414]
[1738217439206,3.13095,3209.3,3208.8,0.29893414]
[1738217439423,0.44034105,3209.2,3208.8,0.29893414]
[1738217440223,3.11621,3209.1,3208.8,0.29893414]
[1738217440394,0.05457356,3209.0,3208.6,0.29893414]
[1738217440593,3.11623,3209.0,3208.6,0.29893414]
[1738217440783,0.05449108,3208.9,3208.6,0.29893414]
[1738217440978,0.31707211,3208.8,3208.6,0.29893414]
[1738217441181,0.05448625,3208.7,3208.6,0.29893414]
[1738217441413,0.31707211,3208.8,3208.6,0.29893414]
[1738217441622,0.05448625,3208.7,3208.6,0.29893414]
[1738217441777,0.31707211,3208.8,3208.6,0.29893414]
[1738217441975,0.05448625,3208.7,3208.6,0.29893414]
[1738217442224,0.31707211,3208.8,3208.6,0.29893414]
[1738217442428,0.05442552,3208.7,3208.6,0.29893414]
[1738217442630,0.31707211,3208.8,3208.6,0.29893414]
[1738217442843,0.05439852,3208.7,3208.6,0.29893414]
[1738217443141,0.31707211,3208.8,3208.6,0.29893414]
[1738217443292,0.05439265,3208.7,3208.6,0.29893414]
[1738217443493,0.40317313,3208.7,3208.6,0.29893414]
[1738217443805,0.4031746,3208.7,3208.6,0.29893414]
[1738217444031,3.5196946,3208.7,3208.6,0.2]
[1738217444193,3.5196946,3208.7,3208.6,0.4]
[1738217444640,3.40950564,3208.7,3208.6,0.4]
[1738217448412,3.41700564,3208.7,3208.6,0.4]
[1738217448611,3.41700564,3208.7,3208.6,0.2]
[1738217452554,3.41700564,3208.7,3208.6,0.48768073]
[1738217453051,4.20920564,3208.7,3208.6,0.48768073]
[1738217453946,4.20920564,3208.7,3208.6,0.2]
[1738217455316,7.20920564,3208.7,3208.6,0.2]
[1738217455719,3.11747,3207.8,3207.6,0.2]
[1738217455958,3.11749,3207.7,3207.6,0.2]
[1738217456262,3.17155922,3207.7,3207.6,0.2]
[1738217456549,3.88250214,3207.7,3207.6,0.2]
[1738217456743,0.76501214,3207.7,3207.4,0.29893414]
[1738217457128,3.88251214,3207.7,3207.4,0.29893414]
[1738217457969,3.88251214,3207.7,3207.6,0.2]
[1738217459869,0.76501214,3207.7,3207.6,0.2]
[1738217463173,3.88250214,3207.7,3207.6,0.2]
[1738217464238,0.76501214,3207.7,3207.6,0.2]
[1738217465290,0.05406922,3207.7,3207.6,0.29893414]
[1738217465468,0.05406922,3207.7,3207.6,4.24202414]
[1738217465669,3.11694,3208.3,3207.8,0.2]
[1738217467690,0.61392643,3208.4,3208.0,0.09893414]
[1738217467885,3.11701,3208.2,3208.0,0.09893414]
[1738217468065,3.49010364,3208.2,3208.0,0.09893414]
[1738217468264,0.37309364,3208.2,3208.0,0.09893414]
[1738217468475,6.11684,3208.4,3208.0,0.09893414]
[1738217468689,3.11692,3208.3,3208.0,0.09893414]
[1738217468872,3.11675,3208.5,3208.2,0.09893414]
[1738217469081,3.11635,3208.9,3208.4,0.91253414]
[1738217469260,3.11635,3208.9,3208.4,0.09893414]
[1738217469261,3.11662,3208.7,3208.4,0.09893414]
[1738217469593,3.11662,3208.7,3208.2,0.2]
[1738217469594,3.11667,3208.6,3208.2,0.29893414]
[1738217469997,3.11674,3208.5,3208.2,0.29893414]
[1738217470290,3.11674,3208.5,3208.2,0.2]
[1738217470458,3.11691,3208.3,3208.2,0.2]
[1738217473898,3.1171,3208.1,3208.0,0.29893414]
[1738217474687,3.11759,3207.6,3207.5,0.2]
[1738217478400,3.16916819,3207.6,3207.5,0.2]
[1738217480504,0.05157819,3207.6,3207.5,0.2]
[1738217480906,3.11751,3207.7,3207.5,0.2]
[1738217481103,0.05160128,3207.6,3207.5,0.2]
[1738217481329,3.16919128,3207.6,3207.5,0.2]
[1738217481473,3.11759,3207.6,3207.5,0.2]
[1738217481787,3.16919128,3207.6,3207.5,0.2]
[1738217490295,3.79860041,3207.6,3207.5,0.2]
[1738217500532,0.05160128,3207.6,3207.5,1.026]
[1738217500897,3.11727,3208.0,3207.7,0.2]
[1738217501399,3.11705,3208.2,3207.9,0.09893414]
[1738217502028,3.11714,3208.1,3207.9,0.09893414]
[1738217502639,3.1172,3208.0,3207.9,0.09893414]
[1738217502805,3.740625,3208.0,3207.9,0.09893414]
[1738217504838,3.1174,3207.8,3207.7,0.2]
[1738217506657,3.12447,3208.3,3208.1,0.29893414]
[1738217506658,3.11701,3208.2,3208.1,0.29893414]
[1738217507757,3.11694,3208.3,3208.1,0.29893414]
[1738217508443,0.04963181,3208.2,3208.1,0.29893414]
[1738217508758,3.74031,3208.3,3208.1,0.29893414]
[1738217508926,0.04971958,3208.2,3208.1,0.29893414]
[1738217509338,6.85731,3208.3,3208.1,0.29893414]
[1738217509549,3.16672958,3208.2,3208.1,0.29893414]
[1738217509746,3.85743354,3208.2,3208.1,0.29893414]
[1738217511343,3.85743354,3208.2,3208.1,0.2]
[1738217512421,3.1172,3208.0,3207.9,0.2]
[1738217512622,3.16688742,3208.0,3207.9,0.2]
[1738217515725,3.17438742,3208.0,3207.9,0.2]
[1738217515931,3.1249,3207.8,3207.7,0.2]
[1738217516453,3.17460049,3207.8,3207.7,0.2]
[1738217517171,3.11759,3207.6,3207.4,0.2]
[1738217517375,3.11769,3207.5,3207.4,0.2]
[1738217517555,3.16738325,3207.5,3207.4,0.2]
[1738217518061,3.79588058,3207.5,3207.4,0.193746]
[1738217527809,0.04969325,3207.5,3207.4,0.29268014]
[1738217528105,3.11737,3207.9,3207.6,0.193746]
[1738217528660,6.23476,3207.9,3207.6,0.193746]
[1738217528830,3.11737,3207.9,3207.6,0.193746]
[1738217529127,3.11746,3207.8,3207.6,0.193746]
[1738217529275,3.81862701,3207.8,3207.6,0.193746]
[1738217529720,0.70116701,3207.8,3207.6,0.29268014]
[1738217530017,3.11749,3207.7,3207.6,0.29268014]
[1738217531084,3.91269,3207.7,3207.6,0.193746]
[1738217531577,3.92019,3207.7,3207.6,0.193746]
[1738217532896,3.13268,3207.6,3207.5,0.193746]
[1738217533516,3.13268,3207.6,3207.3,0.193746]
[1738217533716,3.13268,3207.6,3207.5,0.193746]
[1738217535330,3.12529,3207.4,3207.3,0.193746]
[1738217536107,0.0075,3207.3,3207.0,0.29268014]
[1738217536306,3.11808,3207.1,3207.0,0.193746]
[1738217537036,3.1182,3207.0,3206.8,0.193746]
[1738217537334,3.1183,3206.9,3206.8,0.193746]
[1738217538629,3.16447736,3206.9,3206.8,0.193746]
[1738217538928,3.11856,3206.6,3206.5,0.09893414]
[1738217539130,3.11849,3206.7,3206.5,0.09893414]
[1738217539334,3.16473012,3206.6,3206.5,0.09893414]
[1738217539852,3.11866,3206.5,3206.4,0.4246014]
[1738217540052,3.1723277,3206.5,3206.4,0.4246014]
[1738217540198,3.87642647,3206.5,3206.4,0.4246014]
[1738217541646,3.87642647,3206.5,3206.4,0.193746]
[1738217543928,3.88392647,3206.5,3206.4,0.193746]
[1738217547551,0.0075,3206.4,3206.2,0.193746]
[1738217547754,3.11885,3206.3,3206.2,0.193746]
[1738217548054,3.86407459,3206.3,3206.2,0.193746]
[1738217549013,3.87157459,3206.3,3206.2,0.193746]
[1738217555262,0.74522459,3206.3,3206.2,0.193746]
[1738217555469,0.04569694,3206.3,3206.2,0.193746]
[1738217557861,3.16454694,3206.3,3206.2,0.193746]
[1738217566938,3.11905,3206.1,3206.0,0.193746]
[1738217567388,3.16317789,3206.1,3206.0,0.193746]
[1738217567593,4.68912379,3206.1,3206.0,0.193746]
[1738217567749,3.12665,3206.0,3205.9,0.09893414]
[1738217568089,3.17073325,3206.0,3205.9,0.09893414]
[1738217568675,3.12674,3205.9,3205.8,0.193746]
[1738217568878,3.17082244,3205.9,3205.8,0.193746]
[1738217569180,4.34928401,3205.9,3205.8,0.193746]
[1738217570928,4.34178401,3205.9,3205.8,0.193746]
[1738217572967,3.11934,3205.8,3205.7,0.09893414]
[1738217573404,3.16310174,3205.8,3205.7,0.09893414]
[1738217574502,3.11944,3205.7,3205.6,0.193746]
[1738217574710,3.16319933,3205.7,3205.6,0.193746]
[1738217575271,4.06114401,3205.7,3205.6,0.193746]
[1738217575483,0.04375933,3205.7,3205.6,0.996146]
[1738217575680,6.238,3206.2,3205.6,0.996146]
[1738217576008,3.11898,3206.2,3206.1,0.29268014]
[1738217576393,3.12648,3206.2,3206.1,0.193746]
[1738217576705,3.11915,3206.0,3205.9,0.193746]
[1738217578905,1.08825859,3206.2,3206.0,0.09893414]
[1738217579093,3.11879,3206.4,3206.1,1.008146]
[1738217579500,3.11892,3206.3,3206.1,1.008146]
[1738217579696,3.11895,3206.2,3206.1,1.008146]
[1738217580006,0.8334,3206.1,3205.9,0.193746]
[1738217580208,3.11915,3206.0,3205.9,0.193746]
[1738217580388,3.66699959,3206.0,3205.9,0.193746]
[1738217580588,3.68199959,3206.0,3205.9,0.193746]
[1738217580779,3.11934,3205.8,3205.7,0.193746]
[1738217581735,3.12684,3205.8,3205.7,0.193746]
[1738217582134,0.0075,3205.7,3205.5,0.193746]
[1738217582335,3.11983,3205.3,3205.2,0.29268014]
[1738217583313,3.16053555,3205.3,3205.2,0.29268014]
[1738217584826,3.17553555,3205.3,3205.2,0.193746]
[1738217585056,3.17553555,3205.3,3204.9,0.193746]
[1738217585057,3.12762,3205.0,3204.9,0.193746]
[1738217585210,3.12031,3204.8,3204.7,0.193746]
[1738217585607,3.16057177,3204.8,3204.7,0.193746]
[1738217586209,3.01008075,3204.8,3204.4,0.193746]
[1738217586526,3.12061,3204.5,3204.4,0.193746]
[1738217586727,3.12061,3204.5,3204.2,0.09893414]
[1738217586728,3.12077,3204.4,3204.2,0.29268014]
[1738217586927,3.1208,3204.3,3204.2,0.29268014]
[1738217587245,0.04024967,3204.3,3204.2,0.29268014]
[1738217587830,3.12023,3204.9,3204.7,0.09893414]
[1738217588002,3.12031,3204.8,3204.7,0.29268014]
[1738217588449,3.12005,3205.1,3204.9,0.09893414]
[1738217588748,3.12005,3205.1,3205.0,0.193746]
[1738217590278,3.11952,3205.7,3205.3,0.09893414]
[1738217590478,3.11952,3205.7,3205.3,0.90423414]
[1738217590692,0.311952,3205.6,3205.4,0.193746]
[1738217590905,3.431552,3205.6,3205.4,0.193746]
[1738217591099,3.11952,3205.7,3205.5,0.09893414]
[1738217591468,3.11954,3205.6,3205.5,0.09893414]
[1738217591891,0.7857,3205.9,3205.5,0.09893414]
[1738217592050,3.11905,3206.1,3206.0,0.29268014]
[1738217592403,3.11905,3206.1,3206.0,0.193746]
[1738217592627,3.824496,3206.1,3206.0,0.09893414]
[1738217592753,3.11963,3205.5,3205.4,0.193746]
[1738217593289,3.13483,3205.3,3205.2,0.193746]
[1738217595275,3.12022,3204.9,3204.8,0.09893414]
[1738217595479,3.439742,3204.9,3204.8,0.09893414]
[1738217596464,3.12031,3204.8,3204.7,0.193746]
[1738217597629,3.12801,3204.6,3204.5,0.193746]
[1738217598408,3.16526794,3204.6,3204.5,0.193746]
[1738217598907,3.12061,3204.5,3204.4,0.09893414]
[1738217599095,0.75543573,3204.6,3204.5,0.193746]
[1738217599299,0.0075,3204.6,3204.5,0.193746]
[1738217599874,3.12801,3204.6,3204.5,0.193746]
[1738217601717,3.12801,3204.6,3204.4,0.09893414]
[1738217601894,3.12061,3204.5,3204.4,0.09893414]
[1738217602816,3.1282,3204.4,3204.3,0.193746]
[1738217604187,0.0075,3204.4,3204.3,0.193746]
[1738217604521,3.1282,3204.4,3204.3,0.193746]
[1738217606391,3.1282,3204.4,3204.2,0.09893414]
[1738217606392,3.1208,3204.3,3204.2,0.09893414]
[1738217606599,3.8156862,3204.3,3204.2,0.09893414]
[1738217607018,0.8403,3204.2,3203.9,0.29268014]
[1738217607235,0.8403,3204.2,3203.7,0.7976]
[1738217607236,3.12879,3203.8,3203.7,0.29268014]
[1738217607383,3.12879,3203.8,3203.7,0.193746]
[1738217607723,3.12145,3203.7,3203.5,0.29268014]
[1738217608222,3.12148,3203.6,3203.5,0.193746]
[1738217608423,3.12898,3203.6,3203.5,0.193746]
[1738217608723,3.12918,3203.4,3203.3,0.92997377]
[1738217609095,3.12918,3203.4,3203.3,0.09893414]
[1738217609690,3.13678,3203.3,3203.2,0.193746]
[1738217609946,3.12947,3203.1,3203.0,0.193746]
[1738217610160,3.12947,3203.1,3203.0,0.29268014]
[1738217610841,3.12947,3203.1,3203.0,0.193746]
[1738217611025,0.0075,3203.0,3202.8,0.34773414]
[1738217611208,3.12217,3202.9,3202.8,0.34773414]
[1738217613147,3.12967,3202.9,3202.8,0.2488]
[1738217613291,3.93583706,3202.9,3202.8,0.2488]
[1738217614200,0.04225556,3202.9,3202.8,0.54148014]
[1738217614998,3.16442556,3202.9,3202.8,0.54148014]
[1738217615695,3.17192556,3202.9,3202.8,0.442546]
[1738217615914,6.17192556,3202.9,3202.8,0.2488]
[1738217616440,6.16442556,3202.9,3202.8,0.2488]
[1738217616814,0.03475556,3202.9,3202.8,0.54148014]
[1738217617197,0.0075,3202.9,3202.8,0.54148014]
[1738217617554,0.04225556,3202.9,3202.8,0.54148014]
[1738217617704,3.16442556,3202.9,3202.8,0.54148014]
[1738217618665,3.80057612,3202.9,3202.8,0.442546]
[1738217618945,4.58817612,3202.9,3202.8,0.2488]
[1738217619112,8.13817612,3202.9,3202.8,0.2488]
[1738217633120,7.58817612,3202.9,3202.8,0.2488]
[1738217633320,3.17192556,3202.9,3202.8,0.2488]
[1738217633620,7.50922556,3202.9,3202.8,0.2488]
[1738217641009,7.50922556,3202.9,3202.1,0.005]
[1738217641010,3.13785,3202.2,3202.1,0.005]
[1738217641303,10.70389476,3202.2,3202.1,0.005]
[1738217641501,12.08655824,3202.2,3202.1,0.005]
[1738217644521,11.85555824,3202.2,3202.1,0.005]
[1738217644711,12.08655824,3202.2,3202.1,0.005]
[1738217644908,11.85555824,3202.2,3202.1,0.005]
[1738217648908,11.30555824,3202.2,3202.1,0.005]
[1738217649645,11.93923026,3202.2,3202.1,0.005]
[1738217651043,12.17023026,3202.2,3202.1,0.005]
[1738217651244,11.93923026,3202.2,3202.1,0.005]
[1738217651668,11.14483026,3202.2,3202.1,0.005]
[1738217651812,6.12849476,3202.2,3202.1,0.005]
[1738217652212,9.12849476,3202.2,3202.1,0.005]
[1738217653357,9.12849476,3202.2,3202.1,0.7768]
[1738217654017,6.16617578,3202.2,3202.1,0.10393414]
[1738217654217,9.12849476,3202.2,3202.1,0.005]
[1738217654413,10.09863133,3202.2,3202.1,0.005]
[1738217654854,10.92783133,3202.2,3202.1,0.005]
[1738217668938,10.89950555,3202.2,3202.1,0.005]
[1738217670485,11.44950555,3202.2,3202.1,0.005]
[1738217670780,10.62030555,3202.2,3202.1,0.005]
[1738217670944,11.40070555,3202.2,3202.1,0.005]
[1738217672477,10.85070555,3202.2,3202.1,0.005]
[1738217673246,11.40070555,3202.2,3202.1,0.005]
[1738217674981,11.63170555,3202.2,3202.1,0.005]
[1738217676252,3.13892,3201.1,3201.0,0.984846]
[1738217677350,6.13892,3201.1,3201.0,0.984846]
[1738217678654,3.0075,3201.0,3200.9,0.09893414]
[1738217678854,6.13152,3201.0,3200.9,0.09893414]
[1738217679510,6.13912,3200.9,3200.8,0.193746]
[1738217679790,6.13171,3200.8,3200.7,0.751]
[1738217680355,6.13921,3200.8,3200.7,0.751]
[1738217680555,3.0075,3200.8,3200.7,0.751]
[1738217680969,0.0075,3200.8,3200.7,0.751]
[1738217681368,3.13171,3200.8,3200.7,0.751]
[1738217682255,0.0075,3200.8,3200.7,0.751]
[1738217682856,3.0,3201.0,3200.8,0.29268014]
[1738217683071,3.0,3201.0,3200.9,0.8043]
[1738217683374,6.13152,3201.0,3200.9,0.8043]
[1738217683609,6.13902,3201.0,3200.9,0.8043]
[1738217684302,6.13152,3201.0,3200.9,0.8043]
[1738217685195,3.13152,3201.0,3200.9,0.8043]
[1738217687317,3.13162,3200.9,3200.8,0.29268014]
[1738217687618,3.13162,3200.9,3200.8,1.04788014]
[1738217688421,3.13912,3200.9,3200.8,1.04788014]
[1738217689318,3.13162,3200.9,3200.8,1.04788014]
[1738217690332,0.0075,3200.9,3200.8,1.04788014]
[1738217690608,3.13162,3200.9,3200.8,1.04788014]
[1738217693411,3.764678,3200.9,3200.8,0.29268014]
[1738217694417,3.13912,3200.9,3200.8,0.29268014]
[1738217697710,2.68872,3200.9,3200.8,0.29268014]
[1738217700882,3.12451,3200.5,3200.0,0.09893414]
[1738217701112,3.12441,3200.6,3200.0,0.09893414]
[1738217701113,3.1249,3200.1,3200.0,0.29268014]
[1738217701412,3.1399,3200.1,3200.0,0.09893414]
[1738217701581,6.76636,3200.1,3200.0,0.29268014]
[1738217703417,6.76636,3200.1,3200.0,0.193746]
[1738217703590,3.14009,3199.9,3199.8,0.193746]
[1738217705083,3.13259,3199.9,3199.8,0.193746]
[1738217705408,3.13259,3199.9,3199.8,0.991746]
[1738217705985,3.12509,3199.9,3199.8,0.991746]
[1738217708383,3.12473,3200.3,3200.2,1.08068014]
[1738217709312,0.0075,3200.4,3200.2,1.08068014]
[1738217709517,3.13213,3200.4,3200.2,1.08068014]
[1738217709702,3.12452,3200.5,3200.4,0.29268014]
[1738217711389,3.13202,3200.5,3200.4,0.29268014]
[1738217712622,3.12434,3200.7,3200.6,0.29268014]
[1738217712818,3.12434,3200.7,3200.6,1.10568014]
[1738217714491,6.12416,3200.9,3200.8,0.29268014]
[1738217714690,3.12416,3200.9,3200.8,0.29268014]
[1738217715399,3.13916,3200.9,3200.8,0.29268014]
[1738217715599,7.077878,3200.9,3200.6,0.29268014]
[1738217715825,3.13931,3200.7,3200.6,0.29268014]
[1738217716608,6.10162898,3200.7,3200.6,0.29268014]
[1738217718109,3.965,3200.6,3200.5,0.193746]
[1738217718459,3.1323,3200.2,3200.1,1.07688014]
[1738217719312,3.1248,3200.2,3200.1,1.07688014]
[1738217720313,3.12469,3200.4,3200.3,0.09893414]
[1738217720515,6.24938,3200.4,3200.3,0.29268014]
[1738217720716,3.13219,3200.4,3200.3,0.29268014]
[1738217724022,3.12444,3200.6,3200.5,0.29268014]
[1738217725316,3.13194,3200.6,3200.5,0.29268014]
[1738217726635,3.1243,3200.8,3200.7,0.29268014]
[1738217727138,3.92024,3201.7,3201.6,0.09893414]
[1738217727313,6.92024,3201.7,3201.6,0.09893414]
[1738217727639,7.55226719,3201.7,3201.6,0.09893414]
[1738217727801,6.13093,3201.6,3201.5,0.193746]
[1738217728006,7.89401951,3201.6,3201.5,0.193746]
[1738217729145,4.89401951,3201.6,3201.5,0.193746]
[1738217729343,3.13093,3201.6,3201.5,0.193746]
[1738217730512,3.13853,3201.5,3201.4,0.09893414]
[1738217730931,3.13123,3201.3,3201.2,0.09893414]
[1738217731256,3.94763,3201.3,3201.2,0.09893414]
[1738217731549,3.94763,3201.3,3201.2,0.29268014]
[1738217731713,4.9509779,3201.3,3201.2,0.29268014]
[1738217732345,3.13902,3201.0,3200.9,0.193746]
[1738217732712,3.13902,3201.0,3200.9,0.29268014]
[1738217735235,3.12392,3201.1,3200.9,0.29268014]
[1738217735236,3.12392,3201.1,3200.9,1.10648014]
[1738217735622,3.12392,3201.1,3200.9,1.4166691]
[1738217735829,3.12376,3201.3,3201.2,0.29268014]
[1738217736920,3.13876,3201.3,3201.2,0.29268014]
[1738217745264,6.13876,3201.3,3201.2,0.09893414]
[1738217745474,6.89476,3201.3,3201.2,0.09893414]
[1738217745620,8.1928259,3201.3,3201.2,0.09893414]
[1738217748325,6.13876,3201.3,3201.2,0.09893414]
[1738217748525,3.13126,3201.3,3201.2,0.29268014]
[1738217750539,3.12376,3201.3,3201.2,0.29268014]
[1738217751060,3.12358,3201.5,3201.4,0.29268014]
[1738217751424,3.12358,3201.5,3201.4,1.09828014]
[1738217751629,3.12338,3201.7,3201.4,1.09828014]
[1738217751828,0.63253538,3201.8,3201.4,1.09828014]
[1738217751829,0.63253538,3201.8,3201.6,0.29268014]
[1738217752567,3.1232,3201.9,3201.6,0.29268014]
[1738217752763,3.1232,3201.9,3200.5,0.1]
[1738217752764,3.12279,3202.3,3202.0,0.29268014]
[1738217752937,3.12279,3202.3,3202.2,0.29268014]
[1738217753137,3.12264,3202.5,3202.4,0.29268014]
[1738217754363,3.13764,3202.5,3202.4,0.29268014]
[1738217754566,3.841367,3202.5,3202.4,0.29268014]
[1738217754749,3.841367,3202.5,3202.4,0.193746]
[1738217755266,3.841367,3202.5,3202.4,0.29268014]
[1738217755466,3.13764,3202.5,3202.4,0.29268014]
[1738217757461,3.12264,3202.5,3202.4,0.29268014]
[1738217758641,3.12264,3202.5,3202.4,0.193746]
[1738217758866,3.12264,3202.5,3202.4,0.29268014]
[1738217760573,0.63758672,3202.6,3202.4,1.12578014]
[1738217760775,3.76006672,3202.6,3202.4,1.12578014]
[1738217761149,3.12256,3202.5,3202.4,1.12578014]
[1738217762083,3.12256,3202.5,3202.4,0.29268014]
[1738217764678,0.63758672,3202.6,3202.5,0.7723]
[1738217765484,0.63758672,3202.6,3202.4,0.29268014]
[1738217765686,3.12256,3202.5,3202.4,0.29268014]
[1738217765861,3.1498611,3202.5,3202.4,0.29268014]
[1738217774680,0.0273011,3202.5,3202.4,0.29268014]
[1738217776188,3.1498611,3202.5,3202.4,0.29268014]
[1738217776717,0.63758672,3202.6,3202.4,0.29268014]
[1738217776945,3.76005672,3202.6,3202.4,0.29268014]
[1738217780764,0.63758672,3202.6,3202.4,0.29268014]
[1738217780932,0.63758672,3202.6,3202.5,0.7623]
[1738217781842,0.63758672,3202.6,3202.5,1.05257458]
[1738217782827,0.55483946,3202.6,3202.5,1.05257458]
[1738217784723,0.55483946,3202.6,3202.5,1.28480502]
[1738217785131,0.55483946,3202.6,3202.5,4.40736502]
[1738217785559,3.12202,3203.1,3203.0,0.29268014]
[1738217788037,3.93232,3203.1,3203.0,0.29268014]
[1738217788532,3.94732,3203.1,3203.0,0.29268014]
[1738217788738,6.94732,3203.1,3203.0,0.193746]
[1738217788945,8.5626529,3203.1,3203.0,0.193746]
[1738217790678,3.91716,3202.7,3202.6,0.29268014]
[1738217790881,3.91716,3202.7,3202.6,0.193746]
[1738217795563,3.88786,3202.6,3202.5,0.09893414]
[1738217795778,3.13756,3202.5,3202.4,0.29268014]
[1738217795986,4.276746,3202.5,3202.4,0.29268014]
[1738217796777,0.0075,3202.4,3202.2,0.29268014]
[1738217796947,3.13025,3202.3,3202.2,0.29268014]
[1738217797348,3.95745,3202.3,3202.2,0.09893414]
[1738217797579,4.7043296,3202.3,3202.2,0.09893414]
[1738217797820,7.7043296,3202.3,3202.2,0.09893414]
[1738217799560,10.66664858,3202.3,3202.2,0.09893414]
[1738217802890,3.96484,3201.9,3201.8,0.09893414]
[1738217803132,9.92715898,3201.9,3201.8,0.09893414]
[1738217803255,9.92715898,3201.9,3201.6,0.193746]
[1738217803256,3.96504,3201.7,3201.6,0.29268014]
[1738217803596,6.96504,3201.7,3201.6,0.29268014]
[1738217804794,6.13834,3201.7,3201.6,0.29268014]
[1738217812173,6.95154,3201.7,3201.6,0.29268014]
[1738217812760,6.90603,3201.5,3201.4,0.09893414]
[1738217813057,9.86834898,3201.5,3201.4,0.09893414]
[1738217813480,6.97073,3201.4,3201.3,0.10130236]
[1738217813857,6.97073,3201.4,3201.2,0.0496]
[1738217814062,6.89093898,3201.2,3201.1,0.09893414]